fUST/lending_fUST_20250623
["ID","MTS","AMOUNT","RATE_DAILY","PERIOD"]
[367163143,1750681842204,-151.0,0.00021917,2]
[367163145,1750681842214,-151.0,0.00021917,2]
[367163147,1750681842223,-460.0,0.00021917,2]
[367163149,1750681842232,-460.0,0.00021917,2]
[367163151,1750681842242,-738.99,0.00021917,2]
[367163153,1750681842251,-460.0,0.00021917,2]
[367163155,1750681842261,-151.0,0.00021917,2]
[367163157,1750681842270,-158.529376,0.00021917,2]
[367163159,1750681842279,-460.0,0.00021917,2]
[367163162,1750681842289,-460.0,0.00021917,2]
[367163163,1750681842298,-460.0,0.00021917,2]
[367163166,1750681842308,-460.0,0.00021917,2]
[367163168,1750681842317,-984.7,0.00021917,2]
[367163169,1750681842327,-460.0,0.00021917,2]
[367163172,1750681842337,-460.0,0.00021917,2]
[367163174,1750681842347,-460.0,0.00021917,2]
[367163176,1750681842356,-460.0,0.00021917,2]
[367163179,1750681842366,-154.2994,0.00021917,2]
[367163181,1750681842376,-460.0,0.00021917,2]
[367163183,1750681842386,-5363.85,0.00021917,2]
[367163185,1750681842396,-2265.99,0.00021917,2]
[367163187,1750681842406,-4517.82,0.00021917,2]
[367163189,1750681842416,-254.78552679,0.00021917,2]
[367163191,1750681842425,-553.82954018,0.00021917,2]
[367163193,1750681842435,-460.0,0.00021917,2]
[367163195,1750681842445,-151.0,0.00021917,2]
[367163197,1750681842455,-1003.67,0.00021917,2]
[367163199,1750681842465,-151.0,0.00021917,2]
[367163201,1750681842475,-523.98,0.00021917,2]
[367163203,1750681842485,-228.58566417,0.00021917,2]
[367163205,1750681842495,-460.0,0.00021917,2]
[367163208,1750681842506,-151.0,0.00021917,2]
[367163210,1750681842516,-151.0,0.00021917,2]
[367163212,1750681842525,-564.03,0.00021917,2]
[367163237,1750681842753,-460.0,0.00021917,2]
[367163239,1750681842764,-151.0,0.00021917,2]
[367163241,1750681842774,-615.09,0.00021917,2]
[367163244,1750681842784,-460.0,0.00021917,2]
[367163246,1750681842793,-460.0,0.00021917,2]
[367163248,1750681842803,-460.0,0.00021917,2]
[367163250,1750681842812,-405.80203136,0.00021917,2]
[367163252,1750681842822,-644.1,0.00021917,2]
[367163254,1750681842833,-908.73,0.00021917,2]
[367163256,1750681842843,-251.91820104,0.00021917,2]
[367163258,1750681842852,-460.0,0.00021917,2]
[367163260,1750681842862,-151.0,0.00021917,2]
[367163262,1750681842871,-460.0,0.00021917,2]
[367163264,1750681842881,-1534.72,0.00021917,2]
[367163266,1750681842890,-460.0,0.00021917,2]
[367163268,1750681842899,-151.0,0.00021917,2]
[367163270,1750681842909,-460.0,0.00021917,2]
[367163272,1750681842918,-3506.91,0.00021917,2]
[367163274,1750681842927,-460.0,0.00021917,2]
[367163276,1750681842936,-1649.54,0.00021917,2]
[367163278,1750681842945,-578.66057676,0.00021917,2]
[367163280,1750681842954,-152.016174,0.00021917,2]
[367163282,1750681842963,-460.0,0.00021917,2]
[367163284,1750681842972,-460.0,0.00021917,2]
[367163286,1750681842982,-460.0,0.00021917,2]
[367163288,1750681842991,-533.78,0.00021917,2]
[367163290,1750681843000,-460.0,0.00021917,2]
[367163292,1750681843010,-460.0,0.00021917,2]
[367163294,1750681843019,-151.0,0.00021917,2]
[367163296,1750681843028,-460.0,0.00021917,2]
[367163298,1750681843038,-460.0,0.00021917,2]
[367163300,1750681843047,-460.0,0.00021917,2]
[367163302,1750681843057,-460.0,0.00021917,2]
[367163304,1750681843067,-1548.69,0.00021917,2]
[367163306,1750681843078,-460.0,0.00021917,2]
[367163308,1750681843088,-460.0,0.00021917,2]
[367163310,1750681843098,-1280.61,0.00021917,2]
[367163312,1750681843108,-5304.24,0.00021917,2]
[367163314,1750681843118,-460.0,0.00021917,2]
[367163316,1750681843128,-460.0,0.00021917,2]
[367163318,1750681843137,-151.0,0.00021917,2]
[367163320,1750681843150,-460.0,0.00021917,2]
[367163323,1750681843159,-151.0,0.00021917,2]
[367163325,1750681843169,-460.0,0.00021917,2]
[367163327,1750681843178,-151.0,0.00021917,2]
[367163329,1750681843187,-151.0,0.00021917,2]
[367163330,1750681843198,-151.0,0.00021917,2]
[367163333,1750681843208,-593.15,0.00021917,2]
[367163334,1750681843217,-460.0,0.00021917,2]
[367163337,1750681843227,-460.0,0.00021917,2]
[367163339,1750681843237,-460.0,0.00021917,2]
[367163341,1750681843246,-460.0,0.00021917,2]
[367163342,1750681843256,-800.44,0.00021917,2]
[367163345,1750681843266,-631.46,0.00021917,2]
[367163346,1750681843275,-460.0,0.00021917,2]
[367163348,1750681843285,-500.0,0.00021917,2]
[367163350,1750681843295,-500.0,0.00021917,2]
[367163353,1750681843305,-460.0,0.00021917,2]
[367163355,1750681843314,-500.0,0.00021917,2]
[367163356,1750681843323,-436.42168427,0.00021917,2]
[367163358,1750681843333,-293.4976075,0.00021917,2]
[367163361,1750681843342,-460.0,0.00021917,2]
[367163363,1750681843352,-460.0,0.00021917,2]
[367163365,1750681843370,-1662.3,0.00021917,2]
[367163367,1750681843381,-460.0,0.00021917,2]
[367163369,1750681843391,-460.0,0.00021917,2]
[367163370,1750681843400,-1183.03,0.00021917,2]
[367163372,1750681843410,-460.0,0.00021917,2]
[367163375,1750681843420,-460.0,0.00021917,2]
[367163377,1750681843429,-151.0,0.00021917,2]
[367163379,1750681843439,-151.0,0.00021917,2]
[367163381,1750681843448,-151.0,0.00021917,2]
[367163383,1750681843458,-460.0,0.00021917,2]
[367163385,1750681843468,-151.0,0.00021917,2]
[367163387,1750681843478,-460.0,0.00021917,2]
[367163389,1750681843487,-460.0,0.00021917,2]
[367163391,1750681843497,-460.0,0.00021917,2]
[367163393,1750681843506,-460.0,0.00021917,2]
[367163395,1750681843516,-752.81,0.00021917,2]
[367163397,1750681843525,-460.0,0.00021917,2]
[367163399,1750681843534,-460.0,0.00021917,2]
[367163401,1750681843543,-460.0,0.00021917,2]
[367163403,1750681843554,-773.0,0.00021917,2]
[367163405,1750681843564,-460.0,0.00021917,2]
[367163407,1750681843574,-460.0,0.00021917,2]
[367163409,1750681843583,-1515.73,0.00021917,2]
[367163411,1750681843593,-1515.73,0.00021917,2]
[367163413,1750681843602,-1515.73,0.00021917,2]
[367163415,1750681843613,-1515.73,0.00021917,2]
[367163417,1750681843622,-1515.73,0.00021917,2]
[367163419,1750681843631,-1515.73,0.00021917,2]
[367163421,1750681843640,-460.0,0.00021917,2]
[367163423,1750681843650,-460.0,0.00021917,2]
[367163425,1750681843659,-1515.73,0.00021917,2]
[367163427,1750681843669,-1515.73,0.00021917,2]
[367163429,1750681843678,-1515.73,0.00021917,2]
[367163431,1750681843687,-460.0,0.00021917,2]
[367163433,1750681843697,-1515.73,0.00021917,2]
[367163435,1750681843706,-460.0,0.00021917,2]
[367163437,1750681843715,-1515.73,0.00021917,2]
[367163439,1750681843724,-1515.73,0.00021917,2]
[367163441,1750681843733,-1515.73,0.00021917,2]
[367163443,1750681843743,-1515.73,0.00021917,2]
[367163445,1750681843752,-1515.73,0.00021917,2]
[367163447,1750681843761,-1515.73,0.00021917,2]
[367163449,1750681843771,-1515.73,0.00021917,2]
[367163451,1750681843779,-1515.73,0.00021917,2]
[367163453,1750681843789,-1515.73,0.00021917,2]
[367163455,1750681843798,-798.85,0.00021917,2]
[367163457,1750681843807,-460.0,0.00021917,2]
[367163459,1750681843816,-460.0,0.00021917,2]
[367163461,1750681843826,-460.0,0.00021917,2]
[367163463,1750681843835,-14592.12,0.00021917,2]
[367163465,1750681843844,-151.0,0.00021917,2]
[367163467,1750681843854,-898.56,0.00021917,2]
[367163469,1750681843863,-460.0,0.00021917,2]
[367163471,1750681843872,-151.0,0.00021917,2]
[367163473,1750681843881,-460.0,0.00021917,2]
[367163475,1750681843891,-460.0,0.00021917,2]
[367163477,1750681843900,-155.96262242,0.00021917,2]
[367163479,1750681843909,-460.0,0.00021917,2]
[367163481,1750681843918,-766.17,0.00021917,2]
[367163483,1750681843927,-1004.38,0.00021917,2]
[367163485,1750681843937,-460.0,0.00021917,2]
[367163487,1750681843946,-460.0,0.00021917,2]
[367163489,1750681843955,-460.0,0.00021917,2]
[367163491,1750681843964,-568.51,0.00021917,2]
[367163493,1750681843974,-460.0,0.00021917,2]
[367163495,1750681843983,-604.9,0.00021917,2]
[367163497,1750681843992,-3852.75,0.00021917,2]
[367163499,1750681844001,-663.55,0.00021917,2]
[367163501,1750681844011,-635.9,0.00021917,2]
[367163503,1750681844020,-173.023809,0.00021917,2]
[367163505,1750681844029,-1385.77,0.00021917,2]
[367163507,1750681844039,-442.9631649,0.00021917,2]
[367163509,1750681844048,-6314.97,0.00021917,2]
[367163511,1750681844057,-460.0,0.00021917,2]
[367163513,1750681844067,-1022.41,0.00021917,2]
[367163515,1750681844076,-460.0,0.00021917,2]
[367163517,1750681844085,-460.0,0.00021917,2]
[367163519,1750681844095,-460.0,0.00021917,2]
[367163521,1750681844104,-1496.67,0.00021917,2]
[367163523,1750681844114,-596.3,0.00021917,2]
[367163525,1750681844123,-2294.92,0.00021917,2]
[367163528,1750681844133,-460.0,0.00021917,2]
[367163530,1750681844143,-1240.63,0.00021917,2]
[367163532,1750681844156,-460.0,0.00021917,2]
[367163533,1750681844165,-727.38,0.00021917,2]
[367163535,1750681844175,-460.0,0.00021917,2]
[367163537,1750681844185,-433.61608554,0.00021917,2]
[367163540,1750681844197,-777.36,0.00021917,2]
[367163542,1750681844207,-460.0,0.00021917,2]
[367163544,1750681844216,-555.44,0.00021917,2]
[367163546,1750681844228,-460.0,0.00021917,2]
[367163548,1750681844238,-654.4,0.00021917,2]
[367163550,1750681844247,-460.0,0.00021917,2]
[367163552,1750681844256,-655.63,0.00021917,2]
[367163554,1750681844265,-500.32,0.00021917,2]
[367163556,1750681844275,-460.0,0.00021917,2]
[367163558,1750681844284,-2771.33,0.00021917,2]
[367163560,1750681844293,-460.0,0.00021917,2]
[367163562,1750681844302,-460.0,0.00021917,2]
[367163564,1750681844312,-460.0,0.00021917,2]
[367163566,1750681844322,-5745.21,0.00021917,2]
[367163568,1750681844331,-1802.19,0.00021917,2]
[367163570,1750681844341,-460.0,0.00021917,2]
[367163572,1750681844353,-460.0,0.00021917,2]
[367163575,1750681844363,-460.0,0.00021917,2]
[367163577,1750681844372,-894.55,0.00021917,2]
[367163579,1750681844382,-460.0,0.00021917,2]
[367163580,1750681844391,-1137.97,0.00021917,2]
[367163582,1750681844400,-3640.88,0.00021917,2]
[367163585,1750681844409,-500.0,0.00021917,2]
[367163586,1750681844418,-1039.44,0.00021917,2]
[367163589,1750681844428,-151.0,0.00021917,2]
[367163591,1750681844437,-606.51,0.00021917,2]
[367163593,1750681844447,-151.0,0.00021917,2]
[367163595,1750681844456,-169.64197916,0.00021917,2]
[367163597,1750681844465,-523.94,0.00021917,2]
[367163599,1750681844475,-210.84144,0.00021917,2]
[367163600,1750681844484,-1577.04,0.00021917,2]
[367163603,1750681844494,-1113.06,0.00021917,2]
[367163605,1750681844503,-460.0,0.00021917,2]
[367163606,1750681844512,-585.76,0.00021917,2]
[367163608,1750681844522,-708.06,0.00021917,2]
[367163611,1750681844532,-466.51,0.00021917,2]
[367163613,1750681844541,-1668.41,0.00021917,2]
[367163614,1750681844550,-869.73,0.00021917,2]
[367163617,1750681844560,-585.89,0.00021917,2]
[367163618,1750681844569,-460.0,0.00021917,2]
[367163621,1750681844579,-460.0,0.00021917,2]
[367163623,1750681844589,-460.0,0.00021917,2]
[367163625,1750681844598,-151.0,0.00021917,2]
[367163626,1750681844608,-460.0,0.00021917,2]
[367163629,1750681844617,-151.0,0.00021917,2]
[367163631,1750681844627,-460.0,0.00021917,2]
[367163632,1750681844636,-460.0,0.00021917,2]
[367163635,1750681844645,-167.05320315,0.00021917,2]
[367163637,1750681844655,-403.78421503,0.00021917,2]
[367163639,1750681844664,-460.0,0.00021917,2]
[367163641,1750681844674,-460.0,0.00021917,2]
[367163643,1750681844683,-460.69810951,0.00021917,2]
[367163645,1750681844697,-460.0,0.00021917,2]
[367163647,1750681844706,-460.0,0.00021917,2]
[367163649,1750681844716,-589.27,0.00021917,2]
[367163651,1750681844725,-2121.31,0.00021917,2]
[367163653,1750681844734,-594.16,0.00021917,2]
[367163655,1750681844744,-460.0,0.00021917,2]
[367163657,1750681844754,-460.0,0.00021917,2]
[367163659,1750681844763,-704.22,0.00021917,2]
[367163661,1750681844773,-1940.86,0.00021917,2]
[367163663,1750681844783,-2094.38,0.00021917,2]
[367163665,1750681844793,-460.0,0.00021917,2]
[367163667,1750681844803,-5516.61,0.00021917,2]
[367163669,1750681844814,-460.0,0.00021917,2]
[367163671,1750681844825,-460.0,0.00021917,2]
[367163673,1750681844834,-3360.77,0.00021917,2]
[367163675,1750681844844,-1779.59,0.00021917,2]
[367163677,1750681844853,-645.26,0.00021917,2]
[367163679,1750681844863,-460.0,0.00021917,2]
[367163681,1750681844872,-939.52,0.00021917,2]
[367163683,1750681844881,-151.0,0.00021917,2]
[367163685,1750681844892,-460.0,0.00021917,2]
[367163687,1750681844902,-151.0,0.00021917,2]
[367163689,1750681844911,-200.0,0.00021917,10]
[367163691,1750681844920,-500.0,0.00021917,2]
[367163693,1750681844930,-200.0,0.00021917,10]
[367163695,1750681844939,-200.0,0.00021917,10]
[367163697,1750681844948,-500.0,0.00021917,2]
[367163699,1750681844957,-500.0,0.00021917,2]
[367163701,1750681844967,-200.0,0.00021917,10]
[367163704,1750681844977,-200.0,0.00021917,10]
[367163706,1750681844986,-200.0,0.00021917,10]
[367163708,1750681844995,-200.0,0.00021917,10]
[367163710,1750681845004,-200.0,0.00021917,10]
[367163711,1750681845014,-200.0,0.00021917,10]
[367163714,1750681845023,-1156.62,0.00021917,2]
[367163716,1750681845033,-200.0,0.00021917,10]
[367163718,1750681845043,-460.0,0.00021917,2]
[367163720,1750681845052,-151.0,0.00021917,2]
[367163722,1750681845062,-5477.29,0.00021917,2]
[367163724,1750681845073,-994.43,0.00021917,2]
[367163731,1750681845136,-500.0,0.00021917,2]
[367163733,1750681845145,-460.0,0.00021917,2]
[367163735,1750681845155,-457.1969953,0.00021917,2]
[367163737,1750681845164,-460.0,0.00021917,2]
[367163739,1750681845173,-460.0,0.00021917,2]
[367163741,1750681845182,-460.0,0.00021917,2]
[367163743,1750681845191,-151.0,0.00021917,2]
[367163745,1750681845200,-358.96505236,0.00021917,2]
[367163747,1750681845209,-151.0,0.00021917,2]
[367163749,1750681845219,-460.0,0.00021917,2]
[367163751,1750681845228,-460.0,0.00021917,2]
[367163753,1750681845238,-1263.25,0.00021917,2]
[367163755,1750681845247,-3894.64,0.00021917,2]
[367163757,1750681845257,-2421.62,0.00021917,2]
[367163759,1750681845266,-490.864577,0.00021917,2]
[367163761,1750681845276,-596.15,0.00021917,2]
[367163763,1750681845286,-460.0,0.00021917,2]
[367163765,1750681845295,-151.0,0.00021917,2]
[367163767,1750681845304,-1070.57,0.00021917,2]
[367163769,1750681845314,-506.9,0.00021917,2]
[367163771,1750681845323,-7349.94,0.00021917,2]
[367163773,1750681845333,-460.0,0.00021917,2]
[367163775,1750681845342,-460.0,0.00021917,2]
[367163777,1750681845352,-460.0,0.00021917,2]
[367163779,1750681845361,-879.19,0.00021917,2]
[367163781,1750681845370,-151.0,0.00021917,2]
[367163783,1750681845379,-151.0,0.00021917,2]
[367163785,1750681845389,-460.0,0.00021917,2]
[367163787,1750681845399,-460.0,0.00021917,2]
[367163789,1750681845408,-151.0,0.00021917,2]
[367163791,1750681845418,-553.26,0.00021917,2]
[367163793,1750681845427,-151.0,0.00021917,2]
[367163796,1750681845437,-1629.35,0.00021917,2]
[367163798,1750681845447,-460.0,0.00021917,2]
[367163800,1750681845458,-460.0,0.00021917,2]
[367163802,1750681845467,-460.0,0.00021917,2]
[367163804,1750681845476,-500.0,0.00021917,2]
[367163806,1750681845485,-460.0,0.00021917,2]
[367163808,1750681845494,-2242.04,0.00021917,2]
[367163810,1750681845503,-592.15,0.00021917,2]
[367163812,1750681845512,-460.0,0.00021917,2]
[367163814,1750681845522,-878.82,0.00021917,2]
[367163816,1750681845531,-1101.82,0.00021917,2]
[367163818,1750681845540,-500.0,0.00021917,2]
[367163820,1750681845549,-460.0,0.00021917,2]
[367163822,1750681845558,-151.0,0.00021917,2]
[367163823,1750681845568,-1577.18,0.00021917,2]
[367163825,1750681845577,-151.0,0.00021917,2]
[367163828,1750681845587,-460.0,0.00021917,2]
[367163830,1750681845596,-1182.78,0.00021917,2]
[367163832,1750681845605,-5701.41,0.00021917,2]
[367163834,1750681845614,-460.0,0.00021917,2]
[367163836,1750681845623,-1292.19,0.00021917,2]
[367163837,1750681845632,-151.0,0.00021917,2]
[367163839,1750681845642,-460.0,0.00021917,2]
[367163841,1750681845652,-460.0,0.00021917,2]
[367163843,1750681845661,-460.0,0.00021917,2]
[367163845,1750681845670,-460.0,0.00021917,2]
[367163847,1750681845679,-151.0,0.00021917,2]
[367163849,1750681845688,-151.0,0.00021917,2]
[367163851,1750681845697,-460.0,0.00021917,2]
[367163853,1750681845706,-522.95,0.00021917,2]
[367163855,1750681845715,-304.83556375,0.00021917,2]
[367163857,1750681845725,-460.0,0.00021917,2]
[367163859,1750681845735,-460.0,0.00021917,2]
[367163861,1750681845744,-153.0,0.00021918,2]
[367163863,1750681845754,-153.0,0.00021918,2]
[367163865,1750681845763,-151.0,0.00021918,2]
[367163867,1750681845772,-153.0,0.00021918,2]
[367163869,1750681845781,-153.0,0.00021918,2]
[367163871,1750681845790,-151.0,0.00021918,2]
[367163873,1750681845799,-153.0,0.00021918,2]
[367163875,1750681845809,-155.719176,0.00021918,2]
[367163877,1750681845819,-400.0,0.00021918,7]
[367163879,1750681845828,-209.25266954,0.00021918,2]
[367163881,1750681845837,-151.0,0.00021944,2]
[367163883,1750681845847,-151.0,0.00021944,2]
[367163884,1750681845856,-151.0,0.00021944,2]
[367163886,1750681845865,-493.0,0.00021944,2]
[367163888,1750681845874,-500.0,0.00021944,2]
[367163890,1750681845883,-151.0,0.00021944,2]
[367163892,1750681845892,-151.0,0.00021944,2]
[367163894,1750681845901,-151.0,0.00021944,2]
[367163896,1750681845910,-151.0,0.00021944,2]
[367163898,1750681845919,-151.0,0.00021944,2]
[367163900,1750681845929,-289.12848526,0.00021944,2]
[367163902,1750681845938,-151.0,0.00021944,2]
[367163904,1750681845947,-500.0,0.00021944,2]
[367163906,1750681845956,-500.0,0.00021944,2]
[367163908,1750681845966,-151.0,0.00021944,2]
[367163910,1750681845975,-151.0,0.00021944,2]
[367163912,1750681845985,-151.0,0.00021944,2]
[367163914,1750681845994,-210.36969052,0.00021972,2]
[367163916,1750681846004,-198.0,0.00021972,2]
[367163918,1750681846013,-493.0,0.00021972,2]
[367163920,1750681846022,-565.16270588,0.00021972,2]
[367163922,1750681846031,-198.0,0.00021972,2]
[367163924,1750681846040,-198.0,0.00021972,2]
[367163925,1750681846049,-151.0,0.00021972,2]
[367163927,1750681846058,-158.02093256,0.00021972,2]
[367163929,1750681846067,-151.0,0.00021972,2]
[367163931,1750681846078,-198.0,0.00021972,2]
[367163933,1750681846087,-500.0,0.00021972,2]
[367163935,1750681846096,-500.0,0.00021972,2]
[367163937,1750681846105,-198.0,0.00021972,2]
[367163939,1750681846114,-198.0,0.00021972,2]
[367163941,1750681846123,-198.0,0.00021972,2]
[367163943,1750681846132,-151.0,0.00021972,7]
[367163945,1750681846142,-151.0,0.00021972,2]
[367163947,1750681846159,-1515.73,0.00021972,2]
[367163949,1750681846168,-1515.73,0.00021972,2]
[367163951,1750681846177,-1515.73,0.00021972,2]
[367163953,1750681846186,-1515.73,0.00021972,2]
[367163955,1750681846195,-1515.75,0.00021972,2]
[367163957,1750681846204,-352.66742282,0.00021973,2]
[367163959,1750681846213,-500.0,0.00021973,2]
[367163961,1750681846221,-500.0,0.00021973,2]
[367163963,1750681846230,-500.0,0.00021973,2]
[367163965,1750681846240,-500.0,0.00021973,2]
[367163967,1750681846249,-500.0,0.00021973,2]
[367163969,1750681846258,-500.0,0.00021973,2]
[367163971,1750681846267,-500.0,0.00021973,2]
[367163973,1750681846276,-500.0,0.00021973,2]
[367163975,1750681846285,-500.0,0.00021973,2]
[367163977,1750681846294,-500.0,0.00021973,2]
[367163978,1750681846303,-500.0,0.00021973,2]
[367163980,1750681846312,-550.35644472,0.00021973,2]
[367163982,1750681846321,-500.0,0.00021973,2]
[367163984,1750681846331,-500.0,0.00021973,2]
[367163986,1750681846340,-846.53928378,0.00021983,2]
[367163988,1750681846350,-836.70095952,0.00021983,2]
[367163990,1750681846359,-230.18214666,0.00021983,2]
[367163992,1750681846368,-425.08510397,0.00021983,2]
[367163994,1750681846379,-12553.69357174,0.00021983,2]
[367163996,1750681846388,-213.63163053,0.00021983,2]
[367163998,1750681846397,-160.0,0.00021983,2]
[367164000,1750681846407,-160.0,0.00021983,2]
[367164002,1750681846416,-160.0,0.00021983,2]
[367164004,1750681846425,-160.0,0.00021983,2]
[367164006,1750681846434,-151.0,0.00021988,7]
[367164008,1750681846443,-350.0,0.0002199,2]
[367164010,1750681846452,-80270.42108473,0.0002199,2]
[367164012,1750681846462,-493.0,0.00021999,2]
[367164014,1750681846472,-198.0,0.00021999,2]
[367164016,1750681846482,-198.05545305,0.00021999,2]
[367164018,1750681846491,-500.0,0.00021999,2]
[367164020,1750681846500,-500.0,0.00021999,2]
[367164022,1750681846509,-5000.0,0.00022,2]
[367164024,1750681846518,-123530.88636186,0.00022,2]
[367164026,1750681846527,-386.63703508,0.00022,2]
[367164027,1750681846536,-161.29545787,0.00022,2]
[367164029,1750681846545,-231.3575198,0.00022023,2]
[367164031,1750681846555,-493.0,0.00022027,2]
[367164033,1750681846564,-500.0,0.00022027,2]
[367164035,1750681846573,-500.0,0.00022027,2]
[367164037,1750681846583,-493.0,0.00022054,2]
[367164039,1750681846592,-500.0,0.00022054,2]
[367164041,1750681846601,-500.0,0.00022054,2]
[367164043,1750681846611,-1164.0,0.00022068,2]
[367164045,1750681846620,-493.0,0.00022081,2]
[367164047,1750681846630,-500.0,0.00022081,2]
[367164049,1750681846639,-500.0,0.00022081,2]
[367164051,1750681846648,-151.0,0.000221,7]
[367164053,1750681846657,-493.0,0.00022109,2]
[367164055,1750681846666,-500.0,0.00022109,2]
[367164057,1750681846676,-153.21834357,0.00022109,2]
[367164059,1750681846685,-467.6,0.0002212,4]
[367164061,1750681846695,-493.0,0.00022136,2]
[367164063,1750681846704,-500.0,0.00022136,2]
[367164065,1750681846713,-267.0,0.00022153,2]
[367164067,1750681846722,-493.0,0.00022164,2]
[367164069,1750681846732,-500.0,0.00022164,2]
[367164071,1750681846741,-539.12807305,0.00022173,2]
[367164073,1750681846750,-493.0,0.00022191,2]
[367164075,1750681846760,-281.22132907,0.00022191,2]
[367164077,1750681846769,-460.0,0.00022191,2]
[367164079,1750681846778,-460.0,0.00022191,2]
[367164081,1750681846787,-460.0,0.00022191,2]
[367164083,1750681846796,-526.41,0.00022191,2]
[367164085,1750681846805,-460.0,0.00022191,2]
[367164087,1750681846815,-460.0,0.00022191,2]
[367164089,1750681846824,-541.31,0.00022191,2]
[367164090,1750681846833,-276.8225519,0.00022191,2]
[367164092,1750681846842,-460.0,0.00022191,2]
[367164094,1750681846851,-460.0,0.00022191,2]
[367164096,1750681846860,-460.0,0.00022191,2]
[367164098,1750681846870,-578.04,0.00022191,2]
[367164100,1750681846879,-1136.05,0.00022191,2]
[367164102,1750681846889,-823.6,0.00022191,2]
[367164104,1750681846898,-460.0,0.00022191,2]
[367164106,1750681846907,-460.0,0.00022191,2]
[367164108,1750681846916,-460.0,0.00022191,2]
[367164110,1750681846925,-588.9,0.00022191,2]
[367164112,1750681846934,-151.0,0.00022191,7]
[367164114,1750681846943,-460.0,0.00022191,2]
[367164116,1750681846952,-460.0,0.00022191,2]
[367164118,1750681846961,-460.0,0.00022191,2]
[367164119,1750681846970,-460.0,0.00022191,2]
[367164121,1750681846979,-555.14,0.00022191,2]
[367164123,1750681846988,-460.0,0.00022191,2]
[367164125,1750681846997,-460.0,0.00022191,2]
[367164127,1750681847006,-460.0,0.00022191,2]
[367164129,1750681847015,-460.0,0.00022191,2]
[367164131,1750681847024,-460.0,0.00022191,2]
[367164133,1750681847033,-460.0,0.00022191,2]
[367164135,1750681847043,-460.0,0.00022191,2]
[367164137,1750681847053,-460.0,0.00022191,2]
[367164139,1750681847062,-460.0,0.00022191,2]
[367164141,1750681847071,-460.0,0.00022191,2]
[367164143,1750681847080,-660.03,0.00022191,2]
[367164145,1750681847090,-460.0,0.00022191,2]
[367164147,1750681847099,-460.0,0.00022191,2]
[367164149,1750681847108,-460.0,0.00022191,2]
[367164151,1750681847118,-627.38,0.00022191,2]
[367164153,1750681847127,-460.0,0.00022191,2]
[367164155,1750681847137,-460.0,0.00022191,2]
[367164157,1750681847149,-460.0,0.00022191,2]
[367164158,1750681847159,-460.0,0.00022191,2]
[367164161,1750681847169,-460.0,0.00022191,2]
[367164162,1750681847178,-152.827679,0.00022191,7]
[367164164,1750681847188,-676.07,0.00022191,2]
[367164166,1750681847198,-452.06652529,0.00022191,2]
[367164168,1750681847207,-460.0,0.00022191,2]
[367164170,1750681847217,-460.0,0.00022191,2]